Workbook

Sheet darcy incompressible
C1: INPUT | G1: OUTPUT
B2: Pin | C2: 120 | D2: psig | F2: mass flow rate | G2: =+C4/60 -> 0.6682128596 | H2: lb/min
B3: Pout | C3: 21 | D3: psig | G3: =+G2*27.2155 -> 18.18574708 | H3: kg/hr
B4: mass flow rate | C4: 40.09277158 | D4: lbm/hr | G4: =+G3/60 -> 0.3030957847 | H4: kg/min
B5: INLET TEMP | C5: 70 | D5: F | F5: SCFM | G5: =+G6*C47/C53 -> 6 | H5: ft^3/min
B6: Fluid Type | C6: ARGON | F6: ACFM | G6: =(C4/(C47*0.062428))/60 -> 1.348460183 | H6: ft^3/min
B7: ID | C7: 0.25 | D7: in | F7: mach number | G7: =+C46/C49 -> 0.06282299213 | H7: [-]
B8: use calc (1) or coolprop (0) | C8: 1
B9: pipe roughness | C9: 0.0005 | D9: in
B10: pipe length | C10: 10 | D10: ft
B11: elevation change | C11: 0 | D11: ft
B13: SOLVER
B14: LEFT SIDE | C14: =(C54-C55)+C11*0.3048*C47*C51 -> 682605
B15: RIGHT SIDE | C15: =+C47*C51*F31 -> 20789.38941
B16: solver | C16: =+C14-C15 -> 661815.6106
B18: FITTINGS & VALVES
B19: Item | C19: QTY | D19: K | E19: K=(#*fT) | F19: hL
B20: Pipe | C20: =+C10 -> 10 | F20: =C52*((C20*12)/C7)*C46^2/(2*C51) -> 266.9779822 | G20: f(L/D)V^2/(2*g)
B21: L's 45 | C21: 0 | E21: 16 | F21: =+C21*E21*C$50*C$46^2/(2*C$51) -> 0 | G21: KV^2/(2*g)
B22: Elbows 90 | C22: 0 | E22: 30 | F22: =+C22*E22*C$50*C$46^2/(2*C$51) -> 0
B23: Bends 90 | C23: 0 | E23: 15 | F23: =+C23*E23*C$50*C$46^2/(2*C$51) -> 0
B24: Ball Valve | C24: 0 | E24: 3 | F24: =+C24*E24*C$50*C$46^2/(2*C$51) -> 0
B25: Check Valve | C25: 0 | E25: 50 | F25: =+C25*E25*C$50*C$46^2/(2*C$51) -> 0
B26: Globe Valve | C26: 0 | E26: 340 | F26: =+C26*E26*C$50*C$46^2/(2*C$51) -> 0
B27: T's (branch) | C27: 0 | E27: 45 | F27: =+C27*E27*C$50*C$46^2/(2*C$51) -> 0
B28: T's (run) | C28: 0 | E28: 20 | F28: =+C28*E28*C$50*C$46^2/(2*C$51) -> 0
B29: Entrance | C29: 0 | D29: 0.5 | F29: =+C29*D29*C$46^2/(2*C$51) -> 0
B30: Exit | C30: 0 | D30: 1 | F30: =+C30*D30*C$46^2/(2*C$51) -> 0
E31: sum | F31: =+SUM(F20:F30) -> 266.9779822
B34: FLUID PROPERTIES
B35: Molecular Weight | C35: =_xlfn.XLOOKUP(C6,'gas properties'!B3:B8,'gas properties'!C3:C8) -> 39.95 | D35: g/mol
C36: CALCULATED | E36: COOLPROP | G36: DIFFERENCE
B37: Density in | C37: =IF(C6="WATER",999.8,(1/1000)*C54*C35/(C41*C57)) -> 13.51105959 | D37: kg/m^3 | E37: =IF(C6="water","NA",[1]!PropsSI("Dmass","T",C57,"P",C54,"HEOS::"&C6)) -> 13.58342104 | F37: kg/m^3 | G37: =IF(C6="water","NA",+(C37-E37)/E37) -> -0.005327188751
B38: Density out | C38: =IF(C6="WATER",999.8,(1/1000)*C55*C35/(C41*C57)) -> 2.364435429 | D38: kg/m^3 | E38: =IF(C6="water","NA",[1]!PropsSI("Dmass","T",C57,"P",C55,"HEOS::"&C6)) -> 2.366456317 | F38: kg/m^3 | G38: =IF(C7="water","NA",+(C38-E38)/E38) -> -0.0008539725167
B39: Density avg | C39: =(C38+C37)/2 -> 7.937747511 | D39: kg/m^3 | E39: =(E38+E37)/2 -> 7.974938679 | F39: kg/m^3 | G39: =IF(C8="water","NA",+(C39-E39)/E39) -> -0.004663505227
B40: Viscosity | C40: =IF(C6="WATER",0.00002414 * 10^(247.8/(C57-140)),IF(C6="air",0.00001716*(C57/273.15)^1.5*383.55/(C57+110.4),IF(C6="nitrogen",0.00001663*(C57/273.15)^1.5*383.55/(C57+106.7),IF(C6="argon",0.00002125*(C57/273.15)^1.5*383.55/(C57+114),IF(C6="helium",0.00001865*(C57/273.15)^0.647,IF(C6="hydrogen",0.000008411*(C57/273.15)^0.678)))))) -> 2.232237536e-05 | D40: Pa*s | E40: =[1]!PropsSI("V","T",C57,"P",C54,"HEOS::"&C6) -> 2.250797487e-05 | F40: Pa*s | G40: =+(C40-E40)/E40 -> -0.008245944243
B41: R | C41: 8.314 | D41: Pa*m^3/(mol*K)
B42: Reynolds Number | C42: =C47*C46*C7*0.0254/C48 -> 45364.95717 | D42: [-]
B43: Friction Factor (low Re) | C43: =64/C42 -> 0.001410780567 | D43: [-]
B44: Friction Factor (high Re) | C44: =0.25/(LOG10(C9/(3.7*C7)+5.74/C42^0.9)^2) -> 0.02703668242 | D44: [-]
B45: k | C45: =IF(C6="water","NA",_xlfn.XLOOKUP(C6,'gas properties'!B4:B8,'gas properties'!D4:D8)) -> 1.67 | D45: [-]
B46: velocity | C46: =0.2486*C4/(C47*C7^2) -> 20.09046118 | D46: m/s
B47: density used | C47: =IF(C8=1,C39,E39) -> 7.937747511 | D47: kg/m^3
B48: Viscosity used | C48: =IF(C8=1,C40,E40) -> 2.232237536e-05 | D48: Pa*s
B49: speed of sound | C49: =SQRT(C45*C41*C57/(C35/1000)) -> 319.7947201 | D49: m/s
B50: fT | C50: =0.25/(LOG10(C9/(3.7*C7))^2) -> 0.02342049576 | D50: [-] | E50: friction factor used for minor losses
B51: g | C51: 9.81 | D51: m/s2
B52: pipe friction factor used | C52: =IF(C42<5000,C43,C44) -> 0.02703668242 | D52: [-]
B53: density std | C53: =IF(C6="water","NA",_xlfn.XLOOKUP(C6,'gas properties'!B4:B8,'gas properties'!E4:E8)) -> 1.783956076 | D53: kg/m^3
B54: Pin | C54: =6895*C2 -> 827400 | D54: Pa
B55: Pout | C55: =6895*C3 -> 144795 | D55: Pa
B57: INLET TEMP | C57: =+(C5-32)*5/9+273.15 -> 294.2611111 | D57: K

Sheet darcy compressible
C1: INPUT | G1: OUTPUT
B2: STATUS | C2: =IF(C15>C4,"CHANGE Pout > Pout_CHOKED","Pout VALUE VALID") -> Pout VALUE VALID
B3: Pin | C3: 120 | D3: psig | F3: mass flow rate | G3: =+C5/60 -> 2.213780368 | H3: lb/min
B4: Pout | C4: 100 | D4: psig | G4: =+G3*27.2155 -> 60.2491396 | H4: kg/hr
B5: mass flow rate | C5: 132.8268221 | D5: lbm/hr | G5: =+G4/60 -> 1.004152327 | H5: kg/min
B6: INLET TEMP | C6: 70 | D6: F | F6: SCFM | G6: =+G7*C49/C56 -> 19.87792066 | H6: ft^3/min
B7: Fluid Type | C7: ARGON | F7: ACFM | G7: =(C5/(C49*0.062428))/60 -> 2.624615568 | H7: ft^3/min
B8: ID | C8: 0.25 | D8: in | F8: mach number | G8: =+C48/C51 -> 0.1222773985 | H8: [-]
B9: use calc (1) or coolprop (0)? | C9: 1 | F9: c | G9: =1+1.8*(C58-C59)/C58*((C47-1)/(H36+1)) -> 1.015588365 | H9: [-]
B10: isothermal/ adiabatic/ calculated? | C10: calculated | F10: Y | G10: =SQRT(C11/((C11+1)*G11)*(((1-G11)^((C11+1)/C11))-1)/(2/(C11*H36)*LN(1-G11)-1)) -> 0.9439158131 | H10: [-]
B11: c | C11: =IF(C10="isothermal",1,IF(C10="adiabatic",C47,G9)) -> 1.015588365 | F11: dP/P | G11: =+(C58-C59)/C58 -> 0.1666666667 | H11: [-]
B12: pipe roughness | C12: 0.0005 | D12: in
B13: pipe length | C13: 10 | D13: ft
B14: elevation change | C14: 0 | D14: ft
B15: Pout_CHOKED | C15: =C3-C3*C57 -> 21.2223759 | D15: psig
B18: SOLVER
B19: LEFT SIDE | C19: =(C58-C59)+C14*0.3048*C49*C54 -> 137900
B20: RIGHT SIDE | C20: =+C49*C54*F36/(G10^2) -> 137900
B21: solver | C21: =+C19-C20 -> -1.990702003e-08
B23: FITTINGS & VALVES
B24: Item | C24: QTY | D24: K | E24: K=(#*fT) | F24: hL | H24: K
B25: Pipe | C25: =+C13 -> 10 | F25: =C55*((C25*12)/C8)*C48^2/(2*C54) -> 926.9842872 | G25: f(L/D)V^2/(2*g) | H25: =C55*(C25*12)/C8 -> 11.89423231 | I25: f(L/D)
B26: L's 45 | C26: 0 | E26: 16 | F26: =+C26*E26*C$53*C$48^2/(2*C$54) -> 0 | G26: KV^2/(2*g) | H26: =+C26*E26*C$53 -> 0 | I26: K=(#*fT)
B27: Elbows 90 | C27: 0 | E27: 30 | F27: 0 | H27: 0
B28: Bends 90 | C28: 0 | E28: 15 | F28: 0 | H28: 0
B29: Ball Valve | C29: 0 | E29: 3 | F29: 0 | H29: 0
B30: Check Valve | C30: 0 | E30: 50 | F30: 0 | H30: 0
B31: Globe Valve | C31: 0 | E31: 340 | F31: 0 | H31: 0
B32: T's (branch) | C32: 0 | E32: 45 | F32: 0 | H32: 0
B33: T's (run) | C33: 0 | E33: 20 | F33: 0 | H33: 0
B34: Entrance | C34: 0 | D34: 0.5 | F34: =+C34*D34*C$48^2/(2*C$54) -> 0 | H34: =+C34*D34 -> 0
B35: Exit | C35: 0 | D35: 1 | F35: =+C35*D35*C$48^2/(2*C$54) -> 0 | H35: =+C35*D35 -> 0
E36: sum | F36: =+SUM(F25:F35) -> 926.9842872 | H36: =SUM(H25:H35) -> 11.89423231
B38: FLUID PROPERTIES
B39: Molecular Weight | C39: =_xlfn.XLOOKUP(C7,'gas properties'!B3:B8,'gas properties'!C3:C8) -> 39.95 | D39: g/mol
C40: CALCULATED | E40: COOLPROP | G40: DIFFERENCE
B41: Density | C41: =IF(C7="WATER",999.8,(1/1000)*C58*C39/(C43*C60)) -> 13.51105959 | D41: kg/m^3 | E41: =IF(C7="water","NA",[1]!PropsSI("Dmass","T",C60,"P",C58,"HEOS::"&C7)) -> 13.58342104 | F41: kg/m^3 | G41: =IF(C7="water","NA",+(C41-E41)/E41) -> -0.005327188751
B42: Viscosity | C42: =IF(C7="WATER",0.00002414 * 10^(247.8/(C60-140)),IF(C7="air",0.00001716*(C60/273.15)^1.5*383.55/(C60+110.4),IF(C7="nitrogen",0.00001663*(C60/273.15)^1.5*383.55/(C60+106.7),IF(C7="argon",0.00002125*(C60/273.15)^1.5*383.55/(C60+114),IF(C7="helium",0.00001865*(C60/273.15)^0.647,IF(C7="hydrogen",0.000008411*(C60/273.15)^0.678)))))) -> 2.232237536e-05 | D42: Pa*s | E42: =[1]!PropsSI("V","T",C60,"P",C58,"HEOS::"&C7) -> 2.250797487e-05 | F42: Pa*s | G42: =+(C42-E42)/E42 -> -0.008245944243
B43: R | C43: 8.314 | D43: Pa*m^3/(mol*K)
B44: Reynolds Number | C44: =C49*C48*C8*0.0254/C50 -> 150293.5032 | D44: [-]
B45: Friction Factor (low Re) | C45: =64/C44 -> 0.0004258334434 | D45: [-]
B46: Friction Factor (high Re) | C46: =0.25/(LOG10(C12/(3.7*C8)+5.74/(C44^0.9))^2) -> 0.02477965065 | D46: [-]
B47: k | C47: =IF(C7="water","NA",_xlfn.XLOOKUP(C7,'gas properties'!B4:B8,'gas properties'!D4:D8)) -> 1.67 | D47: [-]
B48: velocity | C48: =0.2486*C5/(C49*C8^2) -> 39.10366643 | D48: m/s
B49: density used | C49: =IF(C9=1,C41,E41) -> 13.51105959 | D49: kg/m^3
B50: Viscosity used | C50: =IF(C9=1,C42,E42) -> 2.232237536e-05 | D50: Pa*s
B51: speed of sound | C51: =SQRT(C47*C43*C60/(C39/1000)) -> 319.7947201 | D51: m/s
B53: fT | C53: =0.25/(LOG10(C12/(3.7*C8))^2) -> 0.02342049576 | D53: [-] | E53: friction factor used for minor losses
B54: g | C54: 9.81 | D54: m/s2
B55: pipe friction factor used | C55: =IF(C44<5000,C45,C46) -> 0.02477965065 | D55: [-]
B56: density std | C56: =IF(C7="water","NA",_xlfn.XLOOKUP(C7,'gas properties'!B4:B8,'gas properties'!E4:E8)) -> 1.783956076 | D56: kg/m^3
B57: dP/P_choked | C57: =+EXP(-EXP(0.43-0.6*C47-0.43*LN(H36))) -> 0.8231468675 | D57: [-]
B58: Pin | C58: =6895*C3 -> 827400 | D58: Pa
B59: Pout | C59: =6895*C4 -> 689500 | D59: Pa
B60: INLET TEMP | C60: =+(C6-32)*5/9+273.15 -> 294.2611111 | D60: K

Sheet fanno flow
C1: INPUT | G1: OUTPUT
B2: STATUS | C2: =IF(C15>C4,"CHANGE Pout > Pout_CHOKED","Pout VALUE VALID") -> Pout VALUE VALID
B3: Pin | C3: 500 | D3: psig | F3: mass flow rate | G3: =+C5/60 -> 21.79383131 | H3: lb/min
B4: Pout | C4: 300 | D4: psig | G4: =+G3*27.2155 -> 593.1300159 | H4: kg/hr
B5: mass flow rate | C5: 1307.629878 | D5: lbm/hr | G5: =+G4/60 -> 9.885500265 | H5: kg/min
B6: INLET TEMP | C6: 70 | D6: F | F6: SCFM | G6: =+G7*C52/C58 -> 1955.968087 | H6: ft^3/min
B7: Fluid Type | C7: HELIUM | F7: ACFM | G7: =(C5/(C52*0.062428))/60 -> 61.88810558 | H7: ft^3/min
B8: ID | C8: 0.5 | D8: in | F8: mach number | G8: =+C51/C54 -> 0.2281718643 | H8: [-]
B9: use calc (1) or coolprop (0)? | C9: 1 | F9: c | G9: =1+1.8*(C61-C62)/C61*((C50-1)/(H37+1)) -> 1.006578252 | H9: [-]
B10: isothermal/ adiabatic/ calculated? | C10: calculated | F10: Y | G10: =SQRT(C11/((C11+1)*G11)*(((1-G11)^((C11+1)/G9))-1)/(2/(C11*H37)*LN(1-G11)-1)) -> 0.8888347726 | H10: [-]
B11: c | C11: =IF(C10="isothermal",1,IF(C10="adiabatic",C50,G9)) -> 1.006578252 | F11: dP/P | G11: =+(C61-C62)/C61 -> 0.4 | H11: [-]
B12: pipe roughness | C12: 0.0005 | D12: in
B13: pipe length | C13: 150 | D13: ft
B14: elevation change | C14: 0 | D14: ft
B15: P2_choked | C15: =C3-C3*C59 -> 42.82914475 | D15: psig
B18: SOLVER
B19: LEFT SIDE | C19: =+C5*0.000126 -> 0.1647613647
B20: RIGHT SIDE | C20: =SQRT((2*G9^2*C61*C60^2*C52)/((G9+1))*(((C62/C61)^((G9+1)/G9))-1)/(2*LN(C62/C61)-G9*H37)) -> 0.05221822226
B21: solver | C21: =+C19-C20 -> 0.1125431424
B24: FITTINGS & VALVES
B25: Item | C25: QTY | D25: K | E25: K=(#*fT) | F25: hL | H25: K
B26: Pipe | C26: =+C13 -> 150 | F26: =C57*((C26*12)/C8)*C51^2/(2*C56) -> 195899.2355 | G26: f(L/D)V^2/(2*g) | H26: =C57*(C26*12)/C8 -> 72.3325525 | I26: f(L/D)
B27: L's 45 | C27: 0 | E27: 16 | F27: =+C27*E27*C$55*C$51^2/(2*C$56) -> 0 | G27: KV^2/(2*g) | H27: =+C27*E27*C$55 -> 0 | I27: K=(#*fT)
B28: Elbows 90 | C28: 0 | E28: 30 | F28: =+C28*E28*C$55*C$51^2/(2*C$56) -> 0 | H28: =+C28*E28*C$55 -> 0
B29: Bends 90 | C29: 0 | E29: 15 | F29: =+C29*E29*C$55*C$51^2/(2*C$56) -> 0 | H29: =+C29*E29*C$55 -> 0
B30: Ball Valve | C30: 0 | E30: 3 | F30: =+C30*E30*C$55*C$51^2/(2*C$56) -> 0 | H30: =+C30*E30*C$55 -> 0
B31: Check Valve | C31: 0 | E31: 50 | F31: =+C31*E31*C$55*C$51^2/(2*C$56) -> 0 | H31: =+C31*E31*C$55 -> 0
B32: Globe Valve | C32: 0 | E32: 340 | F32: =+C32*E32*C$55*C$51^2/(2*C$56) -> 0 | H32: =+C32*E32*C$55 -> 0
B33: T's (branch) | C33: 0 | E33: 45 | F33: =+C33*E33*C$55*C$51^2/(2*C$56) -> 0 | H33: =+C33*E33*C$55 -> 0
B34: T's (run) | C34: 0 | E34: 20 | F34: =+C34*E34*C$55*C$51^2/(2*C$56) -> 0 | H34: =+C34*E34*C$55 -> 0
B35: Entrance | C35: 0 | D35: 0.5 | F35: =+C35*D35*C$51^2/(2*C$56) -> 0 | H35: =+C35*D35 -> 0
B36: Exit | C36: 0 | D36: 1 | F36: =+C36*D36*C$51^2/(2*C$56) -> 0 | H36: =+C36*D36 -> 0
E37: sum | F37: =+SUM(F26:F36) -> 195899.2355 | H37: =SUM(H26:H36) -> 72.3325525
B41: FLUID PROPERTIES
B42: Molecular Weight | C42: =_xlfn.XLOOKUP(C7,'gas properties'!B3:B8,'gas properties'!C3:C8) -> 4.003 | D42: g/mol
C43: CALCULATED | E43: COOLPROP | G43: DIFFERENCE
B44: Density | C44: =IF(C7="WATER",999.8,(1/1000)*C61*C42/(C46*C63)) -> 5.640881472 | D44: kg/m^3 | E44: =IF(C7="water","NA",[1]!PropsSI("Dmass","T",C63,"P",C61,"HEOS::"&C7)) -> 5.547663957 | F44: kg/m^3 | G44: =IF(C7="water","NA",+(C44-E44)/E44) -> 0.01680302122
B45: Viscosity | C45: =IF(C7="WATER",0.00002414 * 10^(247.8/(C63-140)),IF(C7="air",0.00001716*(C63/273.15)^1.5*383.55/(C63+110.4),IF(C7="nitrogen",0.00001663*(C63/273.15)^1.5*383.55/(C63+106.7),IF(C7="argon",0.00002125*(C63/273.15)^1.5*383.55/(C63+114),IF(C7="helium",0.00001865*(C63/273.15)^0.647,IF(C7="hydrogen",0.000008411*(C63/273.15)^0.678)))))) -> 1.957029733e-05 | D45: Pa*s | E45: =[1]!PropsSI("V","T",C63,"P",C61,"HEOS::"&C7) -> 1.978944558e-05 | F45: Pa*s | G45: =+(C45-E45)/E45 -> -0.01107399653
B46: R | C46: 8.314 | D46: Pa*m^3/(mol*K)
B47: Reynolds Number | C47: =C52*C51*C8*0.0254/C53 -> 843824.728 | D47: [-]
B48: Friction Factor (low Re) | C48: =64/C47 -> 7.584513451e-05 | D48: [-]
B49: Friction Factor (high Re) | C49: =0.25/(LOG10(C12/(3.7*C8)+5.74/(C47^0.9))^2) -> 0.02009237569 | D49: [-]
B50: k | C50: =IF(C7="water","NA",_xlfn.XLOOKUP(C7,'gas properties'!B4:B8,'gas properties'!D4:D8)) -> 1.67 | D50: [-]
B51: velocity | C51: =0.2486*C5/(C52*C8^2) -> 230.5148863 | D51: m/s
B52: density used | C52: =IF(C9=1,C44,E44) -> 5.640881472 | D52: kg/m^3
B53: Viscosity used | C53: =IF(C9=1,C45,E45) -> 1.957029733e-05 | D53: Pa*s
B54: speed of sound | C54: =SQRT(C50*C46*C63/(C42/1000)) -> 1010.268672 | D54: m/s
B55: fT | C55: =0.25/(LOG10(C12/(3.7*C8))^2) -> 0.01963546594 | D55: [-] | E55: friction factor used for minor losses
B56: g | C56: 9.81 | D56: m/s2
B57: pipe friction factor used | C57: =IF(C47<5000,C48,C49) -> 0.02009237569 | D57: [-]
B58: density std | C58: =IF(C7="water","NA",_xlfn.XLOOKUP(C7,'gas properties'!B4:B8,'gas properties'!E4:E8)) -> 0.1784811677 | D58: kg/m^3
B59: dP/P_choked | C59: =+EXP(-EXP(0.43-0.6*C50-0.43*LN(H37))) -> 0.9143417105 | D59: [-]
B60: Area | C60: =PI()/4*(0.0254*C8)^2 -> 0.0001266768698 | D60: m^2
B61: Pin | C61: =6895*C3 -> 3447500 | D61: Pa
B62: Pout | C62: =6895*C4 -> 2068500 | D62: Pa
B63: INLET TEMP | C63: =+(C6-32)*5/9+273.15 -> 294.2611111 | D63: K

Sheet gas properties (hidden)
B2: substance | C2: molar mass (g/mol) | D2: specific heat ratio | E2: density STD (kg/m^3) | F2: Specific gravity (Gg) | G2: MW
B3: WATER | C3: 18.015
B4: AIR | C4: 28.97 | D4: 1.4 | E4: 1.293065616 | F4: 1 | G4: 28.97
B5: NITROGEN | C5: 28.014 | D5: 1.4 | E5: 1.25038613 | F5: 0.97 | G5: 28.014
B6: ARGON | C6: 39.95 | D6: 1.67 | E6: 1.783956076 | F6: 1.38 | G6: 39.948
B7: HELIUM | C7: 4.003 | D7: 1.67 | E7: 0.1784811677 | F7: 0.14 | G7: 4.003
B8: HYDROGEN | C8: 2.016 | D8: 1.41 | E8: 0.08988237638 | F8: 0.07 | G8: 2.016
